bitfinex-derivatives/quotes_ETHF0:USTF0_20240928
["timestamp","ask_amount","ask_price","bid_price","bid_amount"]
[1727513491571,0.7456,2668.7,2668.3,0.93666]
[1727513491779,0.7456,2668.7,2668.6,0.37463]
[1727513491979,3.2078,2668.8,2668.7,0.37462]
[1727513492180,0.3909,2669.0,2668.8,0.3746]
[1727513492377,4.51188,2669.0,2668.7,0.37461]
[1727513492575,0.76548,2669.0,2668.7,0.37461]
[1727513493180,0.3909,2669.0,2668.2,6.9201]
[1727513493377,0.3909,2669.0,2668.5,0.37463]
[1727513493378,3.58241,2668.8,2668.5,0.37463]
[1727513493580,0.39,2668.7,2668.5,0.37463]
[1727513493885,0.3848,2668.6,2668.5,0.37463]
[1727513494076,0.754,2668.6,2668.5,0.37463]
[1727513495279,1.46478966,2669.2,2668.5,0.37463]
[1727513495280,3.2078,2669.2,2668.5,6.1378]
[1727513495482,0.3692,2669.1,2668.9,0.37459]
[1727513495683,0.3977,2669.0,2668.9,0.37459]
[1727513497177,1.34572644,2669.1,2669.0,0.37457]
[1727513497377,0.3692,2669.1,2669.0,0.37457]
[1727513497783,4.18432644,2669.2,2669.1,0.37456]
[1727513497997,4.56012644,2669.2,2669.1,0.37456]
[1727513498390,3.5836,2669.2,2669.1,0.37456]
[1727513500784,0.97652644,2669.4,2669.1,3.86641]
[1727513500988,5.48262644,2669.7,2669.6,1.31072]
[1727513501193,0.97652644,2669.9,2669.8,0.37446]
[1727513501385,3.2078,2670.0,2669.9,0.37445]
[1727513501886,3.2078,2670.0,2669.9,0.76525]
[1727513503189,3.2078,2670.0,2669.6,2.93]
[1727513503384,3.2078,2670.0,2669.9,0.37445]
[1727513503593,3.2078,2670.0,2669.9,3.30445]
[1727513505497,0.3781,2670.1,2670.0,0.37443]
[1727513512797,0.3759,2670.4,2670.3,0.37439]
[1727513513099,0.7458,2670.4,2670.2,0.3744]
[1727513513298,0.7458,2670.4,2670.3,0.37439]
[1727513513992,4.4906,2670.4,2670.3,0.37439]
[1727513514193,0.3699,2670.4,2670.3,0.37439]
[1727513514497,0.3699,2670.4,2669.9,4.1431]
[1727513514699,0.3699,2670.4,2670.2,0.37439]
[1727513514901,0.74428,2670.4,2670.2,0.37439]
[1727513515610,0.3699,2670.4,2669.9,0.8036]
[1727513515906,0.74428,2670.4,2670.2,0.3744]
[1727513517004,0.74428,2670.4,2669.9,0.8036]
[1727513517005,0.3744,2670.3,2670.1,0.37441]
[1727513517207,0.3699,2670.4,2669.9,0.8036]
[1727513517208,0.74429,2670.4,2670.2,0.3744]
[1727513517401,0.74429,2670.4,2669.9,0.8036]
[1727513517402,0.3699,2670.4,2669.9,0.8036]
[1727513517601,0.74428,2670.4,2670.2,0.3744]
[1727513518109,0.37439,2670.3,2670.2,0.3744]
[1727513518302,0.37441,2670.2,2670.0,0.37443]
[1727513518503,3.2078,2670.2,2670.1,0.37442]
[1727513519103,0.37441,2670.2,2670.0,0.37442]
[1727513519506,0.7614,2670.3,2670.1,0.37442]
[1727513520312,1.73792644,2670.3,2670.1,0.37442]
[1727513522209,1.36352644,2670.3,2670.0,0.37443]
[1727513522410,3.58223,2670.1,2669.9,0.37444]
[1727513522601,0.3717,2670.0,2669.9,0.37444]
[1727513522805,0.7556,2670.0,2669.9,0.37444]
[1727513523001,4.5012,2670.0,2669.9,0.37444]
[1727513523207,0.7556,2670.0,2669.9,0.37444]
[1727513525017,2.22618966,2670.3,2670.2,0.37441]
[1727513525018,0.97652644,2670.3,2670.2,0.37441]
[1727513525217,2.32864509,2670.6,2670.3,0.37439]
[1727513525218,1.76572644,2670.5,2670.3,0.37439]
[1727513525519,1.76572644,2670.5,2670.1,2.93]
[1727513525520,1.76572644,2670.5,2670.4,0.37438]
[1727513526408,0.7892,2670.5,2670.4,0.37438]
[1727513526712,1.16357,2670.5,2670.3,0.37438]
[1727513526911,0.7892,2670.5,2670.4,0.37438]
[1727513527613,0.3811,2670.5,2670.4,0.37438]
[1727513533713,0.3811,2670.5,2670.4,0.76448]
[1727513534120,0.75546,2670.5,2670.4,0.37438]
[1727513534322,0.3811,2670.5,2670.4,0.37438]
[1727513534510,0.3811,2670.5,2670.2,1.4509]
[1727513534511,0.37438,2670.4,2670.2,0.37439]
[1727513534820,1.4598132,2670.3,2670.2,0.37439]
[1727513535319,1.8558132,2670.3,2670.2,0.37439]
[1727513535819,0.396,2670.3,2670.2,0.37439]
[1727513536211,0.396,2670.3,2670.1,3.69451]
[1727513536414,1.46078895,2670.2,2670.1,3.69451]
[1727513536719,0.396,2670.3,2670.2,0.37441]
[1727513537016,3.60500472,2670.5,2670.4,0.37438]
[1727513537017,2.33538509,2670.5,2670.4,0.37438]
[1727513537611,2.33064283,2670.5,2670.4,0.37438]
[1727513537816,2.33064283,2670.5,2670.4,0.75358]
[1727513538717,0.3811,2670.5,2670.4,0.75358]
[1727513539316,2.33080513,2670.5,2670.4,0.75358]
[1727513539621,0.3811,2670.5,2670.4,0.75358]
[1727513540509,2.82573472,2670.5,2670.4,0.75358]
[1727513541423,0.3811,2670.5,2670.4,0.75358]
[1727513543019,0.9758205,2670.7,2670.4,0.3792]
[1727513543221,1.3759205,2670.7,2670.6,0.37435]
[1727513543416,1.86383075,2670.7,2670.6,0.37435]
[1727513543719,4.58515035,2670.7,2670.1,7.2048]
[1727513544021,1.35160371,2670.6,2670.3,0.37438]
[1727513544222,0.97725371,2670.5,2670.1,2.93]
[1727513544419,0.97725371,2670.5,2670.3,0.37439]
[1727513545117,0.97725371,2670.5,2670.4,0.37438]
[1727513545428,1.46373075,2670.6,2670.5,0.37436]
[1727513545723,0.4001,2670.7,2670.6,0.37435]
[1727513545724,1.86383075,2670.7,2670.6,0.37435]
[1727513545925,1.86383075,2670.7,2670.6,3.30435]
[1727513546317,0.4001,2670.7,2670.6,3.30435]
[1727513547125,0.4001,2670.7,2670.6,2.93]
[1727513547332,2.35174101,2670.7,2670.6,3.30435]
[1727513547926,1.46857656,2670.7,2670.6,3.30434]
[1727513548128,2.33084101,2670.8,2670.7,0.37434]
[1727513549631,2.70516101,2670.8,2670.5,0.37436]
[1727513549833,1.46876844,2670.6,2670.5,0.37436]
[1727513550028,1.95835793,2670.6,2670.4,2.93]
[1727513550331,1.95835793,2670.6,2669.9,0.37444]
[1727513550332,5.06394,2670.5,2669.9,0.37444]
[1727513550527,1.46860424,2670.0,2669.9,0.37444]
[1727513550934,1.84780424,2670.0,2669.9,0.37444]
[1727513551430,1.84780424,2670.0,2669.8,2.93]
[1727513551661,1.46860424,2669.9,2669.6,1.35633116]
[1727513551928,1.46860424,2669.7,2669.6,0.37448]
[1727513552132,1.46860424,2669.7,2669.5,0.3753]
[1727513552133,1.46860424,2669.7,2669.5,0.37449]
[1727513552323,0.97892965,2669.6,2669.5,0.37449]
[1727513553132,0.97892965,2669.6,2669.4,3.30451]
[1727513553430,4.1458,2669.5,2669.1,0.37456]
[1727513553733,0.97886809,2669.2,2669.1,0.37456]
[1727513554437,0.97886809,2669.3,2669.1,0.37456]
[1727513554827,0.97886809,2669.2,2669.1,0.37456]
[1727513555037,1.35946809,2669.3,2669.0,3.30456]
[1727513555236,0.97886809,2669.2,2669.0,0.37457]
[1727513555528,0.97886809,2669.2,2668.9,3.30458]
[1727513555736,0.97886809,2669.2,2668.9,2.93]
[1727513555931,1.35946809,2669.3,2669.0,0.37456]
[1727513556131,1.35946809,2669.3,2669.1,3.30456]
[1727513556329,0.3806,2669.3,2669.2,0.37455]
[1727513556536,1.84898604,2669.3,2669.2,0.37455]
[1727513556724,0.3806,2669.3,2669.2,0.37455]
[1727513557331,1.3577422,2669.3,2669.2,0.37455]
[1727513557536,0.9771422,2669.3,2669.2,3.30455]
[1727513558436,0.9771422,2669.4,2669.2,3.30455]
[1727513558932,0.9771422,2669.4,2669.3,0.37453]
[1727513561332,1.3765422,2669.5,2669.3,0.37453]
[1727513561640,1.37581367,2669.5,2669.4,0.37452]
[1727513561840,0.3994,2669.5,2669.4,0.37452]
[1727513562038,1.37595981,2669.5,2669.4,0.37452]
[1727513564444,0.3994,2669.5,2669.4,0.37452]
[1727513569838,0.3994,2669.5,2669.3,0.37452]
[1727513570441,0.37452,2669.4,2669.2,0.37454]
[1727513570742,3.2078,2669.3,2669.2,0.37454]
[1727513570942,3.58233,2669.3,2669.1,0.37455]
[1727513571746,0.37455,2669.2,2669.1,0.37455]
[1727513572136,3.58234,2669.3,2669.1,0.37455]
[1727513572741,3.58234,2669.3,2669.1,0.37456]
[1727513572936,3.2078,2669.3,2669.1,0.37456]
[1727513576744,3.2078,2669.3,2669.2,0.37455]
[1727513576949,0.3994,2669.5,2669.4,0.37452]
[1727513577353,4.1458,2669.5,2669.4,0.37452]
[1727513577952,4.1458,2669.5,2669.1,2.93]
[1727513578155,3.2078,2669.3,2669.2,0.37455]
[1727513586958,1.7494,2669.5,2669.3,0.37452]
[1727513587157,4.9572,2669.5,2669.3,0.37452]
[1727513587554,5.3317,2669.5,2669.3,0.37452]
[1727513587759,5.3317,2669.5,2669.4,0.37452]
[1727513587962,4.9572,2669.5,2669.4,0.37452]
[1727513588162,8.7036,2669.5,2669.4,0.37452]
[1727513590255,9.0781,2669.5,2669.4,0.37452]
[1727513590558,16.17198604,2669.5,2668.8,0.4029]
[1727513590857,16.17198604,2669.5,2668.7,0.3698]
[1727513590858,4.5578,2669.0,2668.9,0.37458]
[1727513591361,3.9878,2669.0,2668.9,0.37458]
[1727513594355,4.96385725,2669.0,2668.9,0.37458]
[1727513595554,5.45618604,2669.0,2668.9,0.37458]
[1727513596768,9.20258604,2669.0,2668.6,0.98185116]
[1727513596966,9.20258604,2669.0,2668.4,1.47220863]
[1727513596967,4.5578,2668.7,2668.4,0.98185116]
[1727513597268,3.59137068,2668.6,2668.5,0.37464]
[1727513597460,5.8719,2668.6,2668.5,0.37464]
[1727513597769,4.5219,2668.6,2668.5,0.37464]
[1727513598166,8.20466899,2668.6,2668.4,0.37465]
[1727513598366,0.4077,2668.5,2668.4,0.37465]
[1727513598570,1.87437593,2668.5,2668.4,0.37465]
[1727513599670,0.37466,2668.4,2668.2,0.37467]
[1727513599966,0.97761508,2668.3,2668.2,0.37469]
[1727513600170,1.46641572,2668.3,2668.2,0.37469]
[1727513600365,0.97716646,2668.3,2668.2,0.37469]
[1727513601569,1.46641572,2668.4,2668.3,0.37467]
[1727513601570,0.97716646,2668.4,2668.3,0.37467]
[1727513601878,1.35182646,2668.4,2668.2,0.37468]
[1727513602371,0.97716646,2668.4,2668.3,0.37467]
[1727513603175,1.35182646,2668.4,2668.2,0.37468]
[1727513604169,0.97716646,2668.4,2668.3,0.37467]
[1727513604367,3.10951646,2668.5,2668.3,0.37467]
[1727513604771,0.37466,2668.4,2668.3,0.37467]
[1727513605488,2.73486646,2668.5,2668.2,0.37467]
[1727513605779,2.73486646,2668.5,2668.2,0.37469]
[1727513605780,0.37468,2668.3,2668.2,0.37469]
[1727513607976,0.37467,2668.4,2668.2,0.37469]
[1727513608281,2.73486646,2668.5,2668.4,0.37466]
[1727513608282,3.10951646,2668.5,2668.4,0.37466]
[1727513608472,0.4077,2668.5,2668.4,0.37466]
[1727513608785,0.4077,2668.5,2668.3,0.37466]
[1727513608786,4.52955,2668.5,2668.3,0.37466]
[1727513608985,0.78235,2668.5,2668.3,0.37466]
[1727513609282,0.37467,2668.3,2668.2,0.37468]
[1727513609477,1.7577,2668.5,2668.1,3.58249]
[1727513609684,0.405,2668.2,2668.1,3.58249]
[1727513609989,0.97716646,2668.6,2668.3,0.37466]
[1727513610182,0.405,2668.5,2668.3,0.37466]
[1727513610386,0.405,2668.5,2668.2,0.37468]
[1727513610585,0.37467,2668.4,2668.2,0.37468]
[1727513610885,0.37467,2668.3,2668.1,3.58249]
[1727513611073,0.37467,2668.3,2668.2,0.37469]
[1727513611475,0.37467,2668.4,2668.2,0.37469]
[1727513611684,3.2078,2668.4,2668.0,1.35]
[1727513611984,3.2078,2668.4,2668.3,0.37467]
[1727513611985,3.58247,2668.4,2668.3,0.37467]
[1727513612578,3.58247,2668.4,2668.1,1.35]
[1727513612579,0.37467,2668.3,2668.1,1.35]
[1727513612774,0.37467,2668.3,2667.9,2.1322]
[1727513612988,0.37469,2668.2,2667.9,2.1322]
[1727513613281,0.37469,2668.2,2668.0,0.37471]
[1727513613486,0.37469,2668.2,2668.0,0.3747]
[1727513613690,0.37469,2668.2,2668.1,0.3747]
[1727513614780,4.5578,2668.4,2668.0,0.37471]
[1727513615384,0.3747,2668.2,2668.0,0.37471]
[1727513615971,4.5578,2668.4,2668.0,0.37471]
[1727513616981,0.3747,2668.2,2668.0,0.37471]
[1727513617183,0.3747,2668.2,2667.5,3.5972]
[1727513617184,0.37475,2667.8,2667.5,3.5972]
[1727513617388,1.72478,2667.6,2667.4,0.37479]
[1727513617685,0.3797,2667.5,2667.4,0.37479]
[1727513618278,0.3797,2667.5,2667.1,0.7985]
[1727513618588,0.7793,2667.5,2667.4,0.3748]
[1727513618786,0.3797,2667.5,2667.4,0.3748]
[1727513618975,4.9574,2667.8,2667.7,0.37476]
[1727513619179,4.9375,2667.8,2667.6,0.37476]
[1727513619381,4.9375,2667.8,2667.7,0.37476]
[1727513619587,3.2078,2667.8,2667.7,0.37476]
[1727513619779,3.2078,2667.8,2667.7,1.72476]
[1727513620498,3.2078,2667.8,2667.7,5.47356]
[1727513620684,3.2078,2668.3,2668.2,0.37469]
[1727513620889,3.2078,2668.3,2668.2,1.72469]
[1727513622177,3.2078,2668.3,2668.2,0.37469]
[1727513622583,3.2078,2668.3,2667.6,0.7953]
[1727513622584,9.8758,2668.3,2667.6,0.7953]
[1727513622875,6.1278,2667.7,2667.0,3.2078]
[1727513623106,6.1278,2667.7,2667.2,0.37482]
[1727513623107,3.2078,2667.4,2667.2,0.37482]
[1727513623278,3.2078,2667.4,2667.1,1.52723]
[1727513623889,3.2078,2667.4,2667.1,1.1524]
[1727513624383,6.1278,2667.4,2667.1,1.15024]
[1727513625493,3.2078,2667.4,2667.1,1.15024]
[1727513626389,3.2078,2667.4,2667.2,0.37482]
[1727513626692,3.2078,2667.4,2667.1,0.7754]
[1727513626996,3.2078,2667.4,2667.2,0.3739]
[1727513627187,0.3763,2667.5,2667.2,0.3739]
[1727513627385,0.3763,2667.5,2667.4,0.3748]
[1727513632888,3.2078,2667.7,2667.2,0.3739]
[1727513633091,3.58256,2667.7,2667.4,0.37479]
[1727513633595,3.58256,2667.7,2667.2,0.3739]
[1727513633596,3.2078,2667.7,2667.5,0.37477]
[1727513633992,3.58256,2667.7,2667.5,0.37477]
[1727513634788,3.58256,2667.7,2667.4,0.37479]
[1727513635002,3.58256,2667.7,2667.5,0.37478]
[1727513638093,3.2078,2667.7,2667.6,0.37477]
[1727513638594,3.2078,2667.7,2667.6,13.04357]
[1727513638795,3.2078,2668.1,2667.7,0.37476]
[1727513638992,3.2078,2668.1,2668.0,0.37471]
[1727513639891,0.3976,2668.3,2668.2,0.37469]
[1727513640093,3.2078,2668.4,2668.3,0.37467]
[1727513640593,0.3996,2668.5,2668.4,0.37466]
[1727513640786,3.2078,2668.5,2668.4,0.37465]
[1727513642287,0.97716646,2668.6,2668.4,0.37465]
[1727513642490,3.2078,2668.5,2668.4,0.37465]
[1727513643191,4.18496646,2668.6,2668.4,0.37465]
[1727513643586,4.18496646,2668.6,2668.3,0.7848]
[1727513643792,4.18496646,2668.6,2668.4,0.37465]
[1727513643993,4.18496646,2668.6,2668.5,0.37464]
[1727513644500,4.18496646,2668.6,2668.4,0.37465]
[1727513645215,4.55959646,2668.6,2668.4,0.37465]
[1727513646103,3.2078,2668.5,2668.4,0.37465]
[1727513646489,0.97716646,2668.6,2668.5,0.37464]
[1727513646696,0.77222,2668.7,2668.5,0.37464]
[1727513646697,1.74938646,2668.7,2668.5,0.37464]
[1727513647001,1.74938646,2668.7,2668.6,0.37463]
[1727513647002,1.37476646,2668.7,2668.6,0.37463]
[1727513647307,0.3976,2668.7,2668.6,0.37463]
[1727513647491,3.6074,2668.8,2668.7,0.37462]
[1727513648614,3.6074,2668.8,2668.7,4.12182]
[1727513648615,3.2078,2668.8,2668.7,4.12182]
[1727513648903,3.2078,2668.8,2668.7,7.04182]
[1727513649096,0.7894,2669.1,2669.0,0.37457]
[1727513650523,0.7894,2669.1,2668.8,1.16]
[1727513650524,1.16396,2669.1,2668.8,0.3759]
[1727513650698,1.16396,2669.1,2668.5,2.92]
[1727513650699,3.2078,2669.0,2668.5,4.0765]
[1727513650901,3.2078,2669.0,2668.5,1.1565]
[1727513651201,3.2078,2668.7,2668.6,0.37462]
[1727513651406,3.2078,2668.7,2668.2,1.36968]
[1727513651407,0.37465,2668.5,2668.2,1.36968]
[1727513651606,0.37465,2668.5,2667.9,3.90185116]
[1727513651607,0.78366,2668.4,2668.1,0.37469]
[1727513651807,0.37468,2668.3,2668.0,0.3758]
[1727513652007,3.2078,2668.1,2668.0,0.37471]
[1727513652300,0.3811,2668.2,2668.0,0.37471]
[1727513652506,0.3811,2668.2,2667.9,0.76512]
[1727513652696,0.3811,2668.2,2668.0,0.37471]
[1727513654302,3.3011,2668.2,2667.6,0.7649]
[1727513654504,3.29473,2668.0,2667.4,4.3054]
[1727513654708,3.2078,2667.8,2667.4,4.3054]
[1727513654902,3.2078,2667.8,2667.7,0.37476]
[1727513656507,3.2078,2667.8,2667.6,0.37476]
[1727513656812,0.3975,2667.7,2667.6,0.37476]
[1727513657706,3.2078,2668.1,2667.6,2.92]
[1727513657905,0.3711,2668.0,2667.9,0.37473]
[1727513659111,3.2078,2668.1,2667.8,2.92]
[1727513659302,3.2078,2668.1,2668.0,0.37471]
[1727513661410,0.3711,2668.3,2668.1,0.37469]
[1727513664213,0.74577,2668.3,2668.1,0.37469]
[1727513664523,0.3711,2668.3,2668.1,0.37469]
[1727513665222,0.3711,2668.3,2668.2,0.37469]
[1727513667322,0.3711,2668.3,2667.9,1.1515]
[1727513667621,0.3711,2668.3,2668.1,0.37469]
[1727513668520,0.3711,2668.3,2668.2,0.37469]
[1727513668718,3.2078,2668.4,2668.3,0.37467]
[1727513670012,3.2078,2668.4,2668.3,0.75197]
[1727513671119,3.2078,2668.4,2668.3,4.49997]
[1727513675320,0.375,2668.6,2668.5,0.37464]
[1727513680917,3.2078,2668.7,2668.6,0.37463]
[1727513682927,3.2078,2668.7,2668.6,4.12183]
[1727513683320,3.2078,2668.7,2668.6,5.05841]
[1727513683515,0.4026,2669.0,2668.9,0.37459]
[1727513686027,3.6104,2669.0,2668.9,0.37459]
[1727513686823,3.2078,2669.0,2668.9,7.97747]
[1727513687633,3.2078,2669.0,2668.9,8.75947]
[1727513687825,3.2078,2669.0,2668.9,7.82299]
[1727513689025,3.2078,2669.0,2668.9,13.82299]
[1727513690327,0.4048,2669.4,2669.3,0.37453]
[1727513690529,3.2078,2669.5,2669.4,0.37452]
[1727513690731,0.7895,2669.6,2669.5,0.3745]
[1727513691042,1.38326646,2669.9,2669.4,3.311]
[1727513691233,0.4022,2669.8,2669.7,0.37447]
[1727513691542,0.4022,2669.8,2669.6,0.37448]
[1727513691734,0.4022,2669.8,2669.4,3.311]
[1727513691735,0.4022,2669.8,2669.4,0.391]
[1727513691925,3.2078,2669.6,2669.3,0.37452]
[1727513692240,3.2078,2669.6,2669.0,1.3742]
[1727513692535,0.37451,2669.5,2669.1,0.37455]
[1727513692734,0.8154,2669.4,2669.1,0.37455]
[1727513692938,1.2176,2669.4,2669.1,0.37455]
[1727513694334,3.2078,2669.3,2669.1,0.37455]
[1727513695138,3.2078,2669.3,2669.0,1.37956]
[1727513695340,3.2078,2669.3,2669.1,0.37456]
[1727513697538,3.2078,2669.3,2669.2,0.37455]
[1727513697737,3.2078,2669.3,2669.1,0.37455]
[1727513697936,3.2078,2669.3,2669.2,0.37455]
[1727513699338,3.2078,2669.3,2668.8,1.3815]
[1727513699339,3.58233,2669.3,2669.1,0.37455]
[1727513699640,4.18496646,2669.3,2669.1,0.37455]
[1727513699841,3.58233,2669.3,2669.1,0.37455]
[1727513700141,3.58233,2669.3,2668.8,1.005]
[1727513700142,3.2078,2669.3,2669.2,0.37455]
[1727513701937,0.4022,2669.4,2669.3,1.31087]
[1727513702239,3.2078,2669.6,2669.5,0.3745]
[1727513705443,0.386,2669.7,2669.6,0.37449]
[1727513706435,0.386,2669.7,2669.5,0.37449]
[1727513706636,0.386,2669.7,2669.6,0.37449]
[1727513707139,0.76048,2669.7,2669.5,0.3745]
[1727513707339,3.2078,2669.6,2669.5,0.3745]
[1727513709149,0.386,2669.7,2669.6,0.37449]
[1727513709345,3.5938,2669.7,2669.6,0.37449]
[1727513709954,3.96828,2669.7,2669.6,0.37449]
[1727513710346,3.5938,2669.7,2669.6,0.37449]
[1727513711249,0.386,2669.7,2669.6,0.37449]
[1727513711445,3.5938,2669.7,2669.6,0.37449]
[1727513713552,8.69104646,2669.7,2669.1,5.65599]
[1727513713760,4.57096646,2669.7,2669.6,0.37449]
[1727513713952,4.94544646,2669.7,2669.6,0.37449]
[1727513714255,9.67201899,2669.7,2669.6,0.37449]
[1727513714455,9.66539354,2669.7,2669.6,0.37449]
[1727513714654,7.3394,2669.7,2669.6,0.37449]
[1727513714862,9.29093959,2669.7,2669.6,0.37449]
[1727513715152,9.66541959,2669.7,2669.6,0.37449]
[1727513716058,9.29093959,2669.7,2669.6,0.37449]
[1727513716557,7.3394,2669.7,2669.6,0.37449]
[1727513716944,7.71388,2669.7,2669.6,0.37449]
[1727513717952,7.3394,2669.7,2669.6,0.37449]
[1727513718459,7.71388,2669.7,2669.6,0.37449]
[1727513718757,0.37449,2669.6,2669.5,0.3745]
[1727513718949,2.32720635,2669.6,2669.5,0.3745]
[1727513719155,1.95271635,2669.6,2669.5,0.3745]
[1727513719355,0.3036873,2669.7,2669.6,5.99255]
[1727513719562,1.95271635,2670.0,2669.9,0.37445]
[1727513719563,1.46518095,2670.0,2669.9,0.37445]
[1727513719753,1.46518095,2670.0,2669.6,7.06403]
[1727513719754,1.95271635,2670.1,2670.0,0.37443]
[1727513719952,2.32713635,2670.1,2669.9,0.37444]
[1727513720146,1.86858122,2670.0,2669.9,0.37444]
[1727513720960,2.35611635,2670.0,2669.8,0.37445]
[1727513721154,5.56391635,2670.0,2669.8,0.37445]
[1727513721454,1.95271635,2669.9,2669.8,0.37445]
[1727513722460,0.37445,2669.9,2669.4,2.92]
[1727513722756,0.3707,2669.8,2669.7,0.37446]
[1727513723661,0.3707,2669.8,2669.6,0.37448]
[1727513723859,0.4009,2669.7,2669.6,0.37448]
[1727513726557,0.4009,2669.7,2669.2,6.1278]
[1727513726558,2.24056611,2669.7,2669.2,6.1278]
[1727513726760,0.4069,2669.6,2669.5,0.3745]
[1727513727364,1.87208611,2669.6,2669.5,0.3745]
[1727513729466,2.85457373,2669.6,2669.5,0.3745]
[1727513731570,0.4069,2669.6,2669.5,0.3745]
[1727513737466,2.36404737,2669.6,2669.5,0.3745]
[1727513745080,0.4069,2669.6,2669.5,0.3745]
[1727513745778,2.36404737,2669.6,2669.5,1.7245]
[1727513745972,0.4009,2669.7,2669.6,0.37449]
[1727513745973,2.35804737,2669.7,2669.6,0.37449]
[1727513746175,1.87005967,2669.7,2669.6,1.35634116]
[1727513746375,0.7628,2669.8,2669.7,0.37448]
[1727513746570,2.23191482,2669.8,2669.7,1.72448]
[1727513746775,2.23191482,2669.8,2669.7,2.70633116]
[1727513746975,2.23191482,2669.8,2669.7,1.72448]
[1727513748282,2.23191482,2669.8,2669.7,2.70633116]
[1727513748483,0.3707,2669.8,2669.7,2.70633116]
[1727513748686,0.3707,2669.8,2669.7,3.85700833]
[1727513749184,0.3707,2669.8,2669.7,3.856862]
[1727513749384,0.3707,2669.8,2669.7,2.70645188]
[1727513749676,0.3707,2669.8,2669.7,3.85687649]
[1727513750176,0.3707,2669.8,2669.7,2.70645188]
[1727513750575,0.3707,2669.8,2669.7,1.72448]
[1727513751180,0.3707,2669.8,2669.7,2.70645188]
[1727513751381,0.3707,2669.8,2669.7,1.72448]
[1727513751577,2.81713422,2669.8,2669.7,1.72448]
[1727513754281,0.3707,2669.8,2669.7,1.72448]
[1727513756588,3.22363422,2669.9,2669.8,0.37446]
[1727513756589,2.83853422,2669.9,2669.8,0.37446]
[1727513756785,0.3921,2669.9,2669.8,0.37446]
[1727513757380,2.44623654,2670.0,2669.9,0.93613]
[1727513757588,1.95708534,2670.2,2670.0,0.93609]
[1727513757781,1.95708534,2670.2,2670.1,2.66048]
[1727513758178,1.95708534,2670.3,2670.2,0.37441]
[1727513758380,1.95708534,2670.3,2670.2,1.72441]
[1727513759692,0.7867,2670.4,2670.3,0.37439]
[1727513761391,0.7867,2670.4,2670.3,1.72439]
[1727513761592,1.16108,2670.4,2670.3,1.72439]
[1727513762094,1.16108,2670.4,2670.3,1.35]
[1727513763199,0.37441,2670.2,2670.0,0.37442]
[1727513763492,10.55629127,2670.4,2670.0,0.37442]
[1727513763493,1.46699127,2670.3,2670.0,0.959]
[1727513763701,0.37441,2670.2,2670.1,1.35]
[1727513764495,1.84139127,2670.3,2670.1,1.72441]
[1727513764684,0.37441,2670.2,2670.1,1.35]
[1727513765396,0.37441,2670.2,2670.1,1.72442]
[1727513765597,0.37441,2670.2,2670.1,1.35]
[1727513765598,1.84140127,2670.2,2670.1,1.35]
[1727513765795,0.37441,2670.2,2670.1,1.35]
[1727513766296,0.37441,2670.2,2670.1,1.72442]
[1727513767292,0.37441,2670.2,2670.1,1.35]
[1727513769096,3.30918625,2670.3,2670.1,1.72442]
[1727513769596,0.37441,2670.2,2670.1,1.72442]
[1727513769998,0.37441,2670.2,2669.7,3.2078]
[1727513769999,3.7448,2670.2,2669.7,3.2078]
[1727513770302,1.35,2669.8,2669.2,1.35]
[1727513770498,2.4433632,2669.4,2669.3,0.37453]
[1727513770711,2.8178832,2669.4,2669.2,1.72454]
[1727513770906,2.8286632,2669.3,2669.2,1.72454]
[1727513771609,0.3853,2669.3,2669.2,1.72454]
[1727513772410,0.3853,2669.3,2669.2,0.37454]
[1727513773214,2.82869159,2669.3,2669.2,0.37454]
[1727513773519,2.34006664,2669.3,2669.2,3.29454]
[1727513774119,1.95476664,2669.3,2669.2,7.04094]
[1727513774916,0.3914,2669.6,2669.4,0.37451]
[1727513776409,0.76589,2669.6,2669.4,0.37451]
[1727513778704,0.3914,2669.6,2669.5,0.3745]
[1727513779316,0.76589,2669.6,2669.5,0.3745]
[1727513779811,0.76589,2669.6,2669.4,0.37451]
[1727513781106,0.3914,2669.6,2669.5,0.3745]
[1727513781310,0.76589,2669.6,2669.4,0.37451]
[1727513783210,0.3914,2669.6,2669.5,0.3745]
[1727513783821,0.76589,2669.6,2669.4,0.37451]
[1727513785325,0.3745,2669.5,2669.3,0.37452]
[1727513785617,0.3745,2669.5,2669.4,0.37452]
[1727513786609,0.37452,2669.4,2669.2,3.29453]
[1727513786810,0.4063,2669.3,2669.2,3.29453]
[1727513791017,1.46614873,2669.5,2669.4,0.37452]
[1727513791214,1.85594873,2669.5,2669.4,0.37452]
[1727513791715,0.3898,2669.5,2669.4,0.37452]
[1727513792318,0.3898,2669.5,2669.4,1.72452]
[1727513793921,1.85594873,2669.5,2669.4,1.72452]
[1727513794128,0.3898,2669.5,2669.4,1.72452]
[1727513794516,1.85594873,2669.5,2669.4,1.72452]
[1727513794826,0.3898,2669.5,2669.4,1.72452]
[1727513798829,0.3914,2669.6,2669.5,0.3745]
[1727513799218,0.3693,2669.7,2669.6,0.37449]
[1727513799527,0.3693,2669.7,2669.6,1.72449]
[1727513800327,0.74378,2669.7,2669.6,1.35]
[1727513800921,0.3693,2669.7,2669.6,1.72449]
[1727513805033,1.83544873,2669.7,2669.6,1.72449]
[1727513807324,0.3693,2669.7,2669.6,1.72449]
[1727513807935,1.83760026,2669.7,2669.6,1.72449]
[1727513808129,1.83760781,2669.7,2669.6,1.72449]
[1727513808327,0.3693,2669.7,2669.6,1.72449]
[1727513808636,1.95476664,2669.8,2669.7,0.37448]
[1727513808940,1.46890826,2670.0,2669.7,4.6818]
[1727513809131,4.67670826,2670.1,2670.0,0.37443]